[Event "Titled Tuesday Blitz September 27 Late 2022"]
[White "Adury, Anant"]
[Black "Svane, Rasmus"]
[WhiteFideId "30964687"]
[BlackFideId "4657101"]
[WhiteElo "2510"]
[BlackElo "2674"]
[Result "0-1"]
[Round "01"]
[TimeControl "180+1"]
[Date "2022.09.27"]
[WhiteClock "0:00:05"]
[BlackClock "0:00:07"]

1. Nf3 {[%clk 0:02:53]}  d5 {[%clk 0:02:59]} 2. g3 {[%clk 0:02:50]}  Nc6 {[%clk 0:02:59]} 3. d4 {[%clk 0:02:49]}  Bf5 {[%clk 0:03:00]} 4. Bg2 {[%clk 0:02:49]}  Nb4 {[%clk 0:03:00]} 5. Na3 {[%clk 0:02:49]}  e6 {[%clk 0:02:59]} 6. O-O {[%clk 0:02:50]}  h6 {[%clk 0:03:00]} 7. c3 {[%clk 0:02:48]}  Nc6 {[%clk 0:02:59]} 8. Nc2 {[%clk 0:02:35]}  Nf6 {[%clk 0:02:54]} 9. b3 {[%clk 0:02:35]}  Bd6 {[%clk 0:02:54]} 10. Bb2 {[%clk 0:02:35]}  O-O {[%clk 0:02:44]} 11. c4 {[%clk 0:02:32]}  a5 {[%clk 0:02:45]} 12. a3 {[%clk 0:02:24]}  Re8 {[%clk 0:02:40]} 13. a4 {[%clk 0:02:08]}  Be4 {[%clk 0:02:23]} 14. Ba3 {[%clk 0:01:55]}  Bxa3 {[%clk 0:02:20]} 15. Nxa3 {[%clk 0:01:54]}  Nb4 {[%clk 0:02:10]} 16. e3 {[%clk 0:01:52]}  c6 {[%clk 0:02:08]} 17. Ne5 {[%clk 0:01:48]}  Bh7 {[%clk 0:02:02]} 18. Re1 {[%clk 0:01:43]}  Nd7 {[%clk 0:02:01]} 19. Nxd7 {[%clk 0:01:38]}  Qxd7 {[%clk 0:02:02]} 20. Bf1 {[%clk 0:01:22]}  Rad8 {[%clk 0:01:58]} 21. Qd2 {[%clk 0:01:22]}  Qe7 {[%clk 0:01:54]} 22. Rad1 {[%clk 0:01:20]}  Bf5 {[%clk 0:01:32]} 23. f3 {[%clk 0:01:11]}  Bg6 {[%clk 0:01:26]} 24. Rc1 {[%clk 0:01:10]}  Qf6 {[%clk 0:01:25]} 25. Qf2 {[%clk 0:00:59]}  Bd3 {[%clk 0:01:18]} 26. Rcd1 {[%clk 0:00:50]}  Bxf1 {[%clk 0:01:15]} 27. Rxf1 {[%clk 0:00:51]}  e5 {[%clk 0:01:11]} 28. cxd5 {[%clk 0:00:42]}  Nxd5 {[%clk 0:00:54]} 29. dxe5 {[%clk 0:00:29]}  Qxe5 {[%clk 0:00:54]} 30. Nc4 {[%clk 0:00:30]}  Qc3 {[%clk 0:00:53]} 31. e4 {[%clk 0:00:26]}  Nf6 {[%clk 0:00:21]} 32. Qb2 {[%clk 0:00:24]}  Qb4 {[%clk 0:00:17]} 33. Qc2 {[%clk 0:00:23]}  b5 {[%clk 0:00:17]} 34. axb5 {[%clk 0:00:20]}  cxb5 {[%clk 0:00:18]} 35. Ne3 {[%clk 0:00:20]}  a4 {[%clk 0:00:17]} 36. bxa4 {[%clk 0:00:20]}  bxa4 {[%clk 0:00:18]} 37. Nd5 {[%clk 0:00:16]}  Nxd5 {[%clk 0:00:18]} 38. exd5 {[%clk 0:00:17]}  a3 {[%clk 0:00:18]} 39. d6 {[%clk 0:00:17]}  Rxd6 {[%clk 0:00:17]} 40. Rxd6 {[%clk 0:00:15]}  Qxd6 {[%clk 0:00:18]} 41. Qa4 {[%clk 0:00:15]}  Re2 {[%clk 0:00:12]} 42. Qa8+ {[%clk 0:00:12]}  Kh7 {[%clk 0:00:12]} 43. Qa7 {[%clk 0:00:13]}  a2 {[%clk 0:00:08]} 44. f4 {[%clk 0:00:04]}  Qd5 {[%clk 0:00:06]} 45. Rf2 {[%clk 0:00:03]}  Re1+ {[%clk 0:00:07]} 46. Rf1 {[%clk 0:00:03]}  Rxf1+ {[%clk 0:00:06]} 47. Kxf1 {[%clk 0:00:04]}  Qd1+ {[%clk 0:00:07]} 48. Kf2 {[%clk 0:00:05]}  a1=Q {[%clk 0:00:07]} 0-1


[Site "https://www.chess.com"]

[Event "Titled Tuesday Blitz September 27 Late 2022"]
[White "Al-Tarboush, Ward"]
[Black "Naroditsky, Daniel"]
[WhiteFideId "7601450"]
[BlackFideId "2026961"]
[WhiteElo "2234"]
[BlackElo "2628"]
[Result "0-1"]
[Round "01"]
[TimeControl "180+1"]
[Date "2022.09.27"]
[WhiteClock "0:01:37"]
[BlackClock "0:01:04"]

1. e4 {[%clk 0:03:00]}  e5 {[%clk 0:02:48]} 2. Nf3 {[%clk 0:03:01]}  Nc6 {[%clk 0:02:47]} 3. Bb5 {[%clk 0:03:01]}  a6 {[%clk 0:02:46]} 4. Ba4 {[%clk 0:03:01]}  d6 {[%clk 0:02:46]} 5. O-O {[%clk 0:03:01]}  Bd7 {[%clk 0:02:46]} 6. c3 {[%clk 0:03:02]}  Nf6 {[%clk 0:02:45]} 7. Re1 {[%clk 0:03:01]}  g6 {[%clk 0:02:45]} 8. d4 {[%clk 0:03:01]}  Bg7 {[%clk 0:02:46]} 9. Nbd2 {[%clk 0:02:57]}  exd4 {[%clk 0:02:45]} 10. cxd4 {[%clk 0:02:55]}  O-O {[%clk 0:02:45]} 11. Nf1 {[%clk 0:02:55]}  b5 {[%clk 0:02:44]} 12. Bb3 {[%clk 0:02:53]}  Bg4 {[%clk 0:02:43]} 13. Be3 {[%clk 0:02:49]}  Na5 {[%clk 0:02:43]} 14. Bc2 {[%clk 0:02:47]}  Nc4 {[%clk 0:02:40]} 15. b3 {[%clk 0:02:48]}  Nxe3 {[%clk 0:02:33]} 16. Nxe3 {[%clk 0:02:48]}  Be6 {[%clk 0:02:00]} 17. e5 {[%clk 0:02:45]}  dxe5 {[%clk 0:01:51]} 18. dxe5 {[%clk 0:02:46]}  Nd7 {[%clk 0:01:49]} 19. Qd4 {[%clk 0:02:24]}  Nxe5 {[%clk 0:01:47]} 20. Qxd8 {[%clk 0:02:20]}  Nxf3+ {[%clk 0:01:44]} 21. gxf3 {[%clk 0:02:20]}  Rfxd8 {[%clk 0:01:44]} 22. Rad1 {[%clk 0:02:17]}  Bc3 {[%clk 0:01:34]} 23. Rf1 {[%clk 0:02:17]}  f5 {[%clk 0:01:32]} 24. Rxd8+ {[%clk 0:02:16]}  Rxd8 {[%clk 0:01:32]} 25. Rd1 {[%clk 0:02:17]}  Rxd1+ {[%clk 0:01:33]} 26. Nxd1 {[%clk 0:02:18]}  Bd4 {[%clk 0:01:33]} 27. Kf1 {[%clk 0:02:17]}  Kf7 {[%clk 0:01:32]} 28. Ke2 {[%clk 0:02:16]}  Kf6 {[%clk 0:01:30]} 29. f4 {[%clk 0:02:16]}  Ke7 {[%clk 0:01:28]} 30. Ne3 {[%clk 0:02:16]}  Kd6 {[%clk 0:01:26]} 31. Kd3 {[%clk 0:02:15]}  c5 {[%clk 0:01:27]} 32. Bd1 {[%clk 0:02:14]}  Bg7 {[%clk 0:01:25]} 33. Nf1 {[%clk 0:01:59]}  c4+ {[%clk 0:01:22]} 34. Ke3 {[%clk 0:01:59]}  Kc5 {[%clk 0:01:14]} 35. h4 {[%clk 0:01:42]}  Bd4+ {[%clk 0:01:12]} 36. Ke2 {[%clk 0:01:39]}  cxb3 {[%clk 0:01:12]} 37. axb3 {[%clk 0:01:39]}  Kb4 {[%clk 0:01:12]} 38. Nd2 {[%clk 0:01:39]}  Bc3 {[%clk 0:01:12]} 39. Nf3 {[%clk 0:01:39]}  Bxb3 {[%clk 0:01:11]} 40. Ng5 {[%clk 0:01:37]}  a5 {[%clk 0:01:03]} 41. Nxh7 {[%clk 0:01:37]}  a4 {[%clk 0:01:04]} 0-1


[Site "https://www.chess.com"]

[Event "Titled Tuesday Blitz September 27 Late 2022"]
[White "Andreikin, Dmitry"]
[Black "Golubev, Mikhail"]
[WhiteFideId "4158814"]
[BlackFideId "14100983"]
[WhiteElo "2736"]
[BlackElo "2374"]
[Result "1/2-1/2"]
[Round "01"]
[TimeControl "180+1"]
[Date "2022.09.27"]
[WhiteClock "0:01:51"]
[BlackClock "0:00:20"]

1. d4 {[%clk 0:02:59]}  Nf6 {[%clk 0:02:59]} 2. c4 {[%clk 0:02:59]}  g6 {[%clk 0:02:58]} 3. Nc3 {[%clk 0:02:58]}  Bg7 {[%clk 0:02:59]} 4. e4 {[%clk 0:02:58]}  d6 {[%clk 0:02:59]} 5. h3 {[%clk 0:02:59]}  O-O {[%clk 0:02:58]} 6. Be3 {[%clk 0:02:59]}  Na6 {[%clk 0:02:56]} 7. Nf3 {[%clk 0:02:58]}  e5 {[%clk 0:02:55]} 8. d5 {[%clk 0:02:58]}  Nh5 {[%clk 0:02:52]} 9. Nd2 {[%clk 0:02:57]}  Qe8 {[%clk 0:02:46]} 10. c5 {[%clk 0:02:41]}  Nxc5 {[%clk 0:02:36]} 11. b4 {[%clk 0:02:41]}  f5 {[%clk 0:02:23]} 12. g4 {[%clk 0:02:31]}  f4 {[%clk 0:01:00]} 13. Bxc5 {[%clk 0:02:29]}  Ng3 {[%clk 0:01:00]} 14. fxg3 {[%clk 0:02:27]}  dxc5 {[%clk 0:01:00]} 15. bxc5 {[%clk 0:02:22]}  fxg3 {[%clk 0:00:57]} 16. Nf3 {[%clk 0:02:20]}  Qe7 {[%clk 0:00:49]} 17. d6 {[%clk 0:02:21]}  cxd6 {[%clk 0:00:37]} 18. Bc4+ {[%clk 0:02:15]}  Kh8 {[%clk 0:00:34]} 19. cxd6 {[%clk 0:02:15]}  g2 {[%clk 0:00:33]} 20. dxe7 {[%clk 0:02:07]}  gxh1=Q+ {[%clk 0:00:32]} 21. Kf2 {[%clk 0:02:08]}  Qh2+ {[%clk 0:00:27]} 22. Ke3 {[%clk 0:02:04]}  Qf4+ {[%clk 0:00:25]} 23. Kf2 {[%clk 0:02:01]}  Qh2+ {[%clk 0:00:21]} 24. Ke3 {[%clk 0:01:51]}  Qf4+ {[%clk 0:00:20]} 25. Kf2 {[%clk 0:01:51]}  Qh2+ {[%clk 0:00:20]} 1/2-1/2


[Site "https://www.chess.com"]

[Event "Titled Tuesday Blitz September 27 Late 2022"]
[White "Bachmann, Axel"]
[Black "Fieberg, Samuel"]
[WhiteFideId "3700488"]
[BlackFideId "12901717"]
[WhiteElo "2595"]
[BlackElo "2452"]
[Result "0-1"]
[Round "01"]
[TimeControl "180+1"]
[Date "2022.09.28"]
[WhiteClock "0:00:15"]
[BlackClock "0:00:40"]

1. e4 {[%clk 0:03:00]}  e5 {[%clk 0:02:59]} 2. Nf3 {[%clk 0:03:00]}  Nc6 {[%clk 0:03:00]} 3. Bc4 {[%clk 0:02:59]}  Bc5 {[%clk 0:02:59]} 4. b4 {[%clk 0:02:57]}  Bxb4 {[%clk 0:02:59]} 5. c3 {[%clk 0:02:57]}  Be7 {[%clk 0:02:59]} 6. d4 {[%clk 0:02:57]}  Na5 {[%clk 0:02:58]} 7. Bd3 {[%clk 0:02:54]}  d6 {[%clk 0:02:57]} 8. O-O {[%clk 0:02:52]}  Nc6 {[%clk 0:02:57]} 9. Re1 {[%clk 0:02:41]}  Nf6 {[%clk 0:02:56]} 10. Nbd2 {[%clk 0:02:36]}  O-O {[%clk 0:02:55]} 11. Nc4 {[%clk 0:02:32]}  Bg4 {[%clk 0:02:50]} 12. Be3 {[%clk 0:02:24]}  d5 {[%clk 0:02:36]} 13. Ncxe5 {[%clk 0:02:24]}  dxe4 {[%clk 0:02:25]} 14. Nxc6 {[%clk 0:02:21]}  bxc6 {[%clk 0:02:26]} 15. Be2 {[%clk 0:01:55]}  exf3 {[%clk 0:02:24]} 16. Bxf3 {[%clk 0:01:54]}  Bxf3 {[%clk 0:02:23]} 17. Qxf3 {[%clk 0:01:54]}  Qd5 {[%clk 0:02:18]} 18. Qh3 {[%clk 0:01:43]}  Bd6 {[%clk 0:02:14]} 19. a4 {[%clk 0:01:35]}  Qh5 {[%clk 0:02:12]} 20. Qxh5 {[%clk 0:01:25]}  Nxh5 {[%clk 0:02:13]} 21. Bg5 {[%clk 0:01:22]}  Rfe8 {[%clk 0:01:59]} 22. g3 {[%clk 0:01:18]}  Kf8 {[%clk 0:01:55]} 23. Kg2 {[%clk 0:01:17]}  Rxe1 {[%clk 0:01:52]} 24. Rxe1 {[%clk 0:01:15]}  Rb8 {[%clk 0:01:52]} 25. Re4 {[%clk 0:00:52]}  Nf6 {[%clk 0:01:51]} 26. Bxf6 {[%clk 0:00:51]}  gxf6 {[%clk 0:01:52]} 27. Rh4 {[%clk 0:00:50]}  Kg7 {[%clk 0:01:49]} 28. Rg4+ {[%clk 0:00:51]}  Kh8 {[%clk 0:01:49]} 29. Re4 {[%clk 0:00:43]}  f5 {[%clk 0:01:45]} 30. Re3 {[%clk 0:00:31]}  Kg7 {[%clk 0:01:45]} 31. h4 {[%clk 0:00:31]}  h5 {[%clk 0:01:44]} 32. c4 {[%clk 0:00:29]}  Kf6 {[%clk 0:01:40]} 33. c5 {[%clk 0:00:29]}  Bf8 {[%clk 0:01:41]} 34. Kf3 {[%clk 0:00:22]}  Rd8 {[%clk 0:01:37]} 35. Rb3 {[%clk 0:00:18]}  Rxd4 {[%clk 0:01:36]} 36. Rb7 {[%clk 0:00:18]}  Rxa4 {[%clk 0:01:30]} 37. Rxc7 {[%clk 0:00:18]}  Ra6 {[%clk 0:01:30]} 38. Rc8 {[%clk 0:00:18]}  Bxc5 {[%clk 0:01:30]} 39. Rh8 {[%clk 0:00:18]}  Ra3+ {[%clk 0:01:28]} 40. Kg2 {[%clk 0:00:17]}  Kg6 {[%clk 0:01:25]} 41. Rc8 {[%clk 0:00:16]}  Ra6 {[%clk 0:01:25]} 42. Rg8+ {[%clk 0:00:14]}  Kf6 {[%clk 0:01:23]} 43. Rg5 {[%clk 0:00:14]}  Ra2 {[%clk 0:01:21]} 44. Rxh5 {[%clk 0:00:14]}  Rxf2+ {[%clk 0:01:20]} 45. Kh3 {[%clk 0:00:14]}  a5 {[%clk 0:01:10]} 46. Rh6+ {[%clk 0:00:14]}  Ke5 {[%clk 0:01:07]} 47. Rxc6 {[%clk 0:00:13]}  Kd5 {[%clk 0:01:06]} 48. Ra6 {[%clk 0:00:13]}  Bb4 {[%clk 0:01:00]} 49. h5 {[%clk 0:00:14]}  f4 {[%clk 0:00:56]} 50. h6 {[%clk 0:00:13]}  fxg3 {[%clk 0:00:54]} 51. h7 {[%clk 0:00:14]}  Rh2+ {[%clk 0:00:54]} 52. Kxg3 {[%clk 0:00:14]}  Rxh7 {[%clk 0:00:54]} 53. Ra7 {[%clk 0:00:12]}  Kc4 {[%clk 0:00:53]} 54. Kf4 {[%clk 0:00:13]}  Kb3 {[%clk 0:00:53]} 55. Kf5 {[%clk 0:00:13]}  a4 {[%clk 0:00:53]} 56. Kf6 {[%clk 0:00:13]}  a3 {[%clk 0:00:53]} 57. Kf5 {[%clk 0:00:12]}  a2 {[%clk 0:00:52]} 58. Ke4 {[%clk 0:00:13]}  Kb2 {[%clk 0:00:52]} 59. Kd3 {[%clk 0:00:12]}  a1=Q {[%clk 0:00:51]} 60. Rxa1 {[%clk 0:00:13]}  Kxa1 {[%clk 0:00:52]} 61. Ke4 {[%clk 0:00:14]}  Kb2 {[%clk 0:00:50]} 62. Kf5 {[%clk 0:00:14]}  Kc3 {[%clk 0:00:51]} 63. Kf6 {[%clk 0:00:14]}  Kd4 {[%clk 0:00:51]} 64. Kg5 {[%clk 0:00:15]}  Ke5 {[%clk 0:00:51]} 65. Kg4 {[%clk 0:00:15]}  Ke4 {[%clk 0:00:52]} 66. Kg5 {[%clk 0:00:15]}  Bd6 {[%clk 0:00:50]} 67. Kg4 {[%clk 0:00:15]}  Rg7+ {[%clk 0:00:50]} 68. Kh5 {[%clk 0:00:15]}  Kf5 {[%clk 0:00:44]} 69. Kh6 {[%clk 0:00:15]}  Bf8 {[%clk 0:00:39]} 70. Kh5 {[%clk 0:00:15]}  Rh7# {[%clk 0:00:40]} 0-1


[Site "https://www.chess.com"]

[Event "Titled Tuesday Blitz September 27 Late 2022"]
[White "Bacrot, Etienne"]
[Black "Przybylski, Wojciech"]
[WhiteFideId "605506"]
[BlackFideId "1117599"]
[WhiteElo "2666"]
[BlackElo "2133"]
[Result "1-0"]
[Round "01"]
[TimeControl "180+1"]
[Date "2022.09.27"]
[WhiteClock "0:01:38"]
[BlackClock "0:00:01"]

1. e4 {[%clk 0:03:00]}  e5 {[%clk 0:02:55]} 2. Nf3 {[%clk 0:03:00]}  Nf6 {[%clk 0:02:55]} 3. Nc3 {[%clk 0:03:00]}  Nc6 {[%clk 0:02:53]} 4. Bb5 {[%clk 0:03:00]}  Nd4 {[%clk 0:02:49]} 5. Bc4 {[%clk 0:02:59]}  Nxf3+ {[%clk 0:02:45]} 6. gxf3 {[%clk 0:03:00]}  c6 {[%clk 0:02:28]} 7. d4 {[%clk 0:03:00]}  b5 {[%clk 0:02:09]} 8. Bb3 {[%clk 0:02:57]}  b4 {[%clk 0:02:00]} 9. Ne2 {[%clk 0:02:56]}  Qc7 {[%clk 0:01:49]} 10. dxe5 {[%clk 0:02:55]}  Qxe5 {[%clk 0:01:48]} 11. Bf4 {[%clk 0:02:55]}  Qh5 {[%clk 0:01:27]} 12. Ng3 {[%clk 0:02:50]}  Qb5 {[%clk 0:01:24]} 13. Bd6 {[%clk 0:02:45]}  Bxd6 {[%clk 0:01:06]} 14. Qxd6 {[%clk 0:02:46]}  Qb8 {[%clk 0:01:06]} 15. Nf5 {[%clk 0:02:41]}  Qxd6 {[%clk 0:01:00]} 16. Nxd6+ {[%clk 0:02:42]}  Ke7 {[%clk 0:00:59]} 17. Nxf7 {[%clk 0:02:42]}  Re8 {[%clk 0:00:51]} 18. Ne5 {[%clk 0:02:37]}  Bb7 {[%clk 0:00:47]} 19. O-O-O {[%clk 0:02:34]}  d5 {[%clk 0:00:45]} 20. Rhe1 {[%clk 0:02:28]}  Kf8 {[%clk 0:00:43]} 21. exd5 {[%clk 0:02:25]}  cxd5 {[%clk 0:00:43]} 22. Nd3 {[%clk 0:02:16]}  a5 {[%clk 0:00:37]} 23. Ba4 {[%clk 0:02:15]}  Rxe1 {[%clk 0:00:24]} 24. Rxe1 {[%clk 0:02:16]}  Rc8 {[%clk 0:00:24]} 25. Kd2 {[%clk 0:02:15]}  Ba6 {[%clk 0:00:22]} 26. Re6 {[%clk 0:02:12]}  Bxd3 {[%clk 0:00:18]} 27. cxd3 {[%clk 0:02:07]}  Rc5 {[%clk 0:00:08]} 28. Ra6 {[%clk 0:01:58]}  d4 {[%clk 0:00:08]} 29. Ra8+ {[%clk 0:01:58]}  Ke7 {[%clk 0:00:08]} 30. Ra7+ {[%clk 0:01:59]}  Kf8 {[%clk 0:00:07]} 31. Bb3 {[%clk 0:01:59]}  Rh5 {[%clk 0:00:06]} 32. Rf7+ {[%clk 0:01:58]}  Ke8 {[%clk 0:00:06]} 33. Rxg7 {[%clk 0:01:58]}  Rxh2 {[%clk 0:00:06]} 34. Ke2 {[%clk 0:01:57]}  Nh5 {[%clk 0:00:05]} 35. Rg4 {[%clk 0:01:56]}  Nf6 {[%clk 0:00:03]} 36. Rxd4 {[%clk 0:01:55]}  Ke7 {[%clk 0:00:03]} 37. Rc4 {[%clk 0:01:53]}  Rh5 {[%clk 0:00:03]} 38. Rc7+ {[%clk 0:01:53]}  Kd6 {[%clk 0:00:02]} 39. Ra7 {[%clk 0:01:53]}  Nd7 {[%clk 0:00:01]} 40. Ra6+ {[%clk 0:01:52]}  Kc7 {[%clk 0:00:01]} 41. d4 {[%clk 0:01:50]}  Rf5 {[%clk 0:00:01]} 42. Be6 {[%clk 0:01:47]}  Rf6 {[%clk 0:00:01]} 43. Ra7+ {[%clk 0:01:47]}  Kd6 {[%clk 0:00:01]} 44. Rxd7+ {[%clk 0:01:46]}  Kxe6 {[%clk 0:00:01]} 45. Rxh7 {[%clk 0:01:47]}  Rf5 {[%clk 0:00:01]} 46. Ra7 {[%clk 0:01:46]}  Kd6 {[%clk 0:00:01]} 47. Ra6+ {[%clk 0:01:46]}  Kc7 {[%clk 0:00:02]} 48. Ke3 {[%clk 0:01:46]}  Rh5 {[%clk 0:00:01]} 49. f4 {[%clk 0:01:45]}  Kb7 {[%clk 0:00:01]} 50. Rg6 {[%clk 0:01:44]}  Rh1 {[%clk 0:00:01]} 51. Kd2 {[%clk 0:01:42]}  Ra1 {[%clk 0:00:01]} 52. Kc2 {[%clk 0:01:41]}  Rxa2 {[%clk 0:00:01]} 53. Kb1 {[%clk 0:01:41]}  b3 {[%clk 0:00:01]} 54. Rg3 {[%clk 0:01:40]}  Ra4 {[%clk 0:00:01]} 55. Rxb3+ {[%clk 0:01:39]}  Kc6 {[%clk 0:00:01]} 56. Rd3 {[%clk 0:01:39]}  Kd5 {[%clk 0:00:02]} 57. f5 {[%clk 0:01:39]}  Rb4 {[%clk 0:00:02]} 58. f6 {[%clk 0:01:39]}  Rb7 {[%clk 0:00:02]} 59. Rf3 {[%clk 0:01:38]}  Rf7 {[%clk 0:00:01]} 60. Rf4 {[%clk 0:01:38]} 1-0


[Site "https://www.chess.com"]

[Event "Titled Tuesday Blitz September 27 Late 2022"]
[White "Culum, Sanjin"]
[Black "Kollars, Dmitrij"]
[WhiteFideId "14420937"]
[BlackFideId "12909572"]
[WhiteElo "2063"]
[BlackElo "2584"]
[Result "0-1"]
[Round "01"]
[TimeControl "180+1"]
[Date "2022.09.27"]
[WhiteClock "0:00:11"]
[BlackClock "0:00:28"]

1. d4 {[%clk 0:03:00]}  Nf6 {[%clk 0:02:52]} 2. c4 {[%clk 0:02:59]}  e6 {[%clk 0:02:51]} 3. g3 {[%clk 0:02:59]}  c5 {[%clk 0:02:50]} 4. d5 {[%clk 0:02:59]}  exd5 {[%clk 0:02:51]} 5. cxd5 {[%clk 0:03:00]}  d6 {[%clk 0:02:52]} 6. Bg2 {[%clk 0:03:01]}  g6 {[%clk 0:02:52]} 7. Nf3 {[%clk 0:03:01]}  Bg7 {[%clk 0:02:53]} 8. O-O {[%clk 0:03:02]}  O-O {[%clk 0:02:54]} 9. Nc3 {[%clk 0:03:02]}  Re8 {[%clk 0:02:55]} 10. Bf4 {[%clk 0:03:03]}  Bf5 {[%clk 0:02:54]} 11. Nh4 {[%clk 0:03:02]}  Bg4 {[%clk 0:02:52]} 12. Qd2 {[%clk 0:03:02]}  b5 {[%clk 0:02:48]} 13. Nxb5 {[%clk 0:03:02]}  Rxe2 {[%clk 0:02:47]} 14. Qc1 {[%clk 0:03:03]}  Nh5 {[%clk 0:02:34]} 15. Bg5 {[%clk 0:02:46]}  Qb6 {[%clk 0:02:28]} 16. Nc3 {[%clk 0:02:43]}  Re8 {[%clk 0:02:09]} 17. h3 {[%clk 0:02:25]}  Bd7 {[%clk 0:02:07]} 18. g4 {[%clk 0:02:03]}  Nf6 {[%clk 0:01:58]} 19. Qf4 {[%clk 0:02:02]}  Qb4 {[%clk 0:01:06]} 20. Qxd6 {[%clk 0:01:47]}  Qb6 {[%clk 0:01:02]} 21. Qf4 {[%clk 0:01:26]}  Qb4 {[%clk 0:00:58]} 22. Qd6 {[%clk 0:00:54]}  Qb6 {[%clk 0:00:57]} 23. Qxb6 {[%clk 0:00:48]}  axb6 {[%clk 0:00:58]} 24. d6 {[%clk 0:00:48]}  Bc6 {[%clk 0:00:51]} 25. Bxc6 {[%clk 0:00:43]}  Nxc6 {[%clk 0:00:52]} 26. Nf3 {[%clk 0:00:39]}  Nd7 {[%clk 0:00:48]} 27. Nd5 {[%clk 0:00:37]}  Bxb2 {[%clk 0:00:43]} 28. Rae1 {[%clk 0:00:36]}  f6 {[%clk 0:00:35]} 29. Bh4 {[%clk 0:00:16]}  Rxe1 {[%clk 0:00:32]} 30. Rxe1 {[%clk 0:00:16]}  Kf7 {[%clk 0:00:33]} 31. Ne7 {[%clk 0:00:15]}  Nce5 {[%clk 0:00:33]} 32. Nxe5+ {[%clk 0:00:15]}  Bxe5 {[%clk 0:00:34]} 33. Nd5 {[%clk 0:00:12]}  Rxa2 {[%clk 0:00:32]} 34. f4 {[%clk 0:00:11]}  Bxd6 {[%clk 0:00:30]} 35. Rb1 {[%clk 0:00:12]}  c4 {[%clk 0:00:29]} 36. Nxb6 {[%clk 0:00:12]}  Nxb6 {[%clk 0:00:28]} 37. Rxb6 {[%clk 0:00:11]}  Bc5+ {[%clk 0:00:28]} 0-1


[Site "https://www.chess.com"]

[Event "Titled Tuesday Blitz September 27 Late 2022"]
[White "Estrada Nieto, Julian"]
[Black "Boyer, Mahel"]
[WhiteFideId "5101018"]
[BlackFideId "45102422"]
[WhiteElo "2252"]
[BlackElo "2454"]
[Result "0-1"]
[Round "01"]
[TimeControl "180+1"]
[Date "2022.09.28"]
[WhiteClock "0:00:01"]
[BlackClock "0:00:12"]

1. e4 {[%clk 0:02:55]}  c5 {[%clk 0:02:58]} 2. Nf3 {[%clk 0:02:54]}  d6 {[%clk 0:02:58]} 3. Bb5+ {[%clk 0:02:54]}  Nc6 {[%clk 0:02:52]} 4. d4 {[%clk 0:02:52]}  cxd4 {[%clk 0:02:46]} 5. Qxd4 {[%clk 0:02:52]}  e5 {[%clk 0:02:39]} 6. Qd3 {[%clk 0:02:48]}  Ne7 {[%clk 0:02:36]} 7. O-O {[%clk 0:02:42]}  a6 {[%clk 0:02:36]} 8. Ba4 {[%clk 0:02:33]}  b5 {[%clk 0:02:30]} 9. Bb3 {[%clk 0:02:32]}  Na5 {[%clk 0:02:30]} 10. Ng5 {[%clk 0:01:41]}  Nxb3 {[%clk 0:02:28]} 11. Qxb3 {[%clk 0:01:41]}  d5 {[%clk 0:02:27]} 12. Nc3 {[%clk 0:01:28]}  h6 {[%clk 0:02:14]} 13. Nf3 {[%clk 0:01:19]}  d4 {[%clk 0:02:11]} 14. Nd5 {[%clk 0:01:03]}  Nxd5 {[%clk 0:01:59]} 15. exd5 {[%clk 0:01:02]}  f6 {[%clk 0:02:00]} 16. Nh4 {[%clk 0:00:51]}  g5 {[%clk 0:01:46]} 17. Ng6 {[%clk 0:00:45]}  Rg8 {[%clk 0:01:46]} 18. Nxf8 {[%clk 0:00:44]}  Rxf8 {[%clk 0:01:43]} 19. a4 {[%clk 0:00:43]}  Rb8 {[%clk 0:01:37]} 20. axb5 {[%clk 0:00:38]}  Rxb5 {[%clk 0:01:37]} 21. Qd3 {[%clk 0:00:37]}  Qxd5 {[%clk 0:01:29]} 22. Qg6+ {[%clk 0:00:31]}  Ke7 {[%clk 0:01:23]} 23. b3 {[%clk 0:00:28]}  Bb7 {[%clk 0:01:04]} 24. Ba3+ {[%clk 0:00:20]}  Ke6 {[%clk 0:01:04]} 25. f3 {[%clk 0:00:18]}  Rc8 {[%clk 0:01:05]} 26. Rfe1 {[%clk 0:00:11]}  Rb6 {[%clk 0:00:45]} 27. Re2 {[%clk 0:00:05]}  Rbc6 {[%clk 0:00:42]} 28. Rae1 {[%clk 0:00:05]}  R6c7 {[%clk 0:00:11]} 29. Rxe5+ {[%clk 0:00:04]}  Qxe5 {[%clk 0:00:11]} 30. Rxe5+ {[%clk 0:00:04]}  Kxe5 {[%clk 0:00:12]} 31. Qxh6 {[%clk 0:00:03]}  Rxc2 {[%clk 0:00:12]} 32. h3 {[%clk 0:00:02]}  Ra2 {[%clk 0:00:12]} 33. Be7 {[%clk 0:00:02]}  Rc6 {[%clk 0:00:12]} 34. Qg7 {[%clk 0:00:01]}  Re6 {[%clk 0:00:12]} 35. Bf8 {[%clk 0:00:01]}  d3 {[%clk 0:00:12]} 36. Qc7+ {[%clk 0:00:01]}  Kf5 {[%clk 0:00:11]} 37. Qc5+ {[%clk 0:00:01]}  Kg6 {[%clk 0:00:11]} 38. Qc4 {[%clk 0:00:01]}  Ra1+ {[%clk 0:00:12]} 0-1


[Site "https://www.chess.com"]

[Event "Titled Tuesday Blitz September 27 Late 2022"]
[White "Ezat, Mohamed"]
[Black "Van Foreest, Jorden"]
[WhiteFideId "10600906"]
[BlackFideId "1039784"]
[WhiteElo "2386"]
[BlackElo "2649"]
[Result "0-1"]
[Round "01"]
[TimeControl "180+1"]
[Date "2022.09.27"]
[WhiteClock "0:00:41"]
[BlackClock "0:02:34"]

1. d4 {[%clk 0:01:27]}  Nf6 {[%clk 0:02:58]} 2. c4 {[%clk 0:01:24]}  e6 {[%clk 0:02:58]} 3. Nc3 {[%clk 0:01:24]}  c5 {[%clk 0:02:57]} 4. d5 {[%clk 0:01:23]}  exd5 {[%clk 0:02:57]} 5. cxd5 {[%clk 0:01:24]}  d6 {[%clk 0:02:57]} 6. e4 {[%clk 0:01:24]}  g6 {[%clk 0:02:58]} 7. f4 {[%clk 0:01:24]}  Bg7 {[%clk 0:02:58]} 8. Bb5+ {[%clk 0:01:25]}  Nfd7 {[%clk 0:02:59]} 9. Be2 {[%clk 0:01:25]}  O-O {[%clk 0:02:59]} 10. Nf3 {[%clk 0:01:24]}  a6 {[%clk 0:02:59]} 11. a4 {[%clk 0:01:23]}  c4 {[%clk 0:03:00]} 12. O-O {[%clk 0:01:22]}  Nc5 {[%clk 0:03:00]} 13. e5 {[%clk 0:01:22]}  Bg4 {[%clk 0:02:59]} 14. Bxc4 {[%clk 0:01:20]}  dxe5 {[%clk 0:02:59]} 15. h3 {[%clk 0:01:12]}  Bxf3 {[%clk 0:02:57]} 16. Qxf3 {[%clk 0:01:11]}  Nbd7 {[%clk 0:02:56]} 17. f5 {[%clk 0:01:11]}  Rc8 {[%clk 0:02:55]} 18. d6 {[%clk 0:01:10]}  e4 {[%clk 0:02:44]} 19. Nxe4 {[%clk 0:01:07]}  Ne5 {[%clk 0:02:45]} 20. Qf4 {[%clk 0:00:54]}  Nxe4 {[%clk 0:02:43]} 21. Bxf7+ {[%clk 0:00:52]}  Rxf7 {[%clk 0:02:39]} 22. Qxe4 {[%clk 0:00:52]}  Qxd6 {[%clk 0:02:39]} 23. Be3 {[%clk 0:00:49]}  Qd3 {[%clk 0:02:37]} 24. Qxd3 {[%clk 0:00:45]}  Nxd3 {[%clk 0:02:38]} 25. fxg6 {[%clk 0:00:45]}  Rxf1+ {[%clk 0:02:37]} 26. Rxf1 {[%clk 0:00:44]}  hxg6 {[%clk 0:02:38]} 27. Rd1 {[%clk 0:00:44]}  Nxb2 {[%clk 0:02:37]} 28. Rd7 {[%clk 0:00:44]}  Nc4 {[%clk 0:02:38]} 29. Bf2 {[%clk 0:00:42]}  b5 {[%clk 0:02:32]} 30. axb5 {[%clk 0:00:42]}  axb5 {[%clk 0:02:33]} 31. Rb7 {[%clk 0:00:43]}  Nd6 {[%clk 0:02:32]} 32. Rb6 {[%clk 0:00:43]}  Rc1+ {[%clk 0:02:33]} 33. Kh2 {[%clk 0:00:43]}  Be5+ {[%clk 0:02:34]} 34. g3 {[%clk 0:00:43]}  Rc2 {[%clk 0:02:34]} 35. Kg1 {[%clk 0:00:42]}  Rxf2 {[%clk 0:02:33]} 36. Rb8+ {[%clk 0:00:41]}  Rf8 {[%clk 0:02:34]} 37. Rxf8+ {[%clk 0:00:41]}  Kxf8 {[%clk 0:02:34]} 0-1


[Site "https://www.chess.com"]